[Event "ESP-ch Rapid 2018"]
[Site "Linares"]
[Date "2018.08.19"]
[Round "8"]
[White "Iglesias Leon, Francisco J"]
[Black "Arroyo Rodriguez, Jesus"]
[Result "1/2-1/2"]
[ECO "A04"]
[WhiteElo "2129"]
[BlackElo "2099"]
[Annotator "NA"]
[PlyCount "124"]
[EventDate "2018.08.19"]
[EventType "team-tourn"]
[EventCountry "ESP"]
[SourceTitle "playchess.com"]
[Source "ChessBase"]
[SourceQuality "1"]
[TimeControl "900+5"]

1. Nf3 {[%emt 0:00:00]} c5 {[%emt 0:00:00]} 2. b3 {[%emt 0:00:00]} Nc6 {[%emt 0:00:03]} 3. Bb2 {[%emt 0:00:00]} d5 {[%emt 0:00:20]} 4. c4 {[%emt 0:00:13]} d4 {[%emt 0:00:16]} 5. g3 {[%emt 0:00:23]} e5 {[%emt 0:00:24]} 6. d3 {[%emt 0:00:05]} f5 {[%emt 0:00:41]} 7. Nbd2 {[%emt 0:00:05]} Nf6 {[%emt 0:00:01]} 8. Bg2 {[%emt 0:00:10]} Bd6 {[%emt 0:01:04]} 9. O-O {[%emt 0:00:10]} O-O {[%emt 0:00:55]} 10. e4 {[%emt 0:00:07]} fxe4 {[%emt 0:00:31]} 11. dxe4 {[%emt 0:00:38]} Qe8 {[%emt 0:00:37]} 12. Ne1 {[%emt 0:00:34]} Bg4 {[%emt 0:00:21]} 13. f3 {[%emt 0:00:03]} Be6 {[%emt 0:00:02]} 14. Nd3 {[%emt 0:00:01]} Qh5 {[%emt 0:00:22]} 15. a3 {[%emt 0:00:03]} Nd7 {[%emt 0:00:49]} 16. f4 {[%emt 0:00:18]} Bg4 {[%emt 0:00:03]} 17. Bf3 {[%emt 0:00:01]} Nf6 {[%emt 0:00:56]} 18. f5 {[%emt 0:00:58]} g6 {[%emt 0:01:01]} 19. Nf2 {[%emt 0:00:27]} Bxf3 {[%emt 0:00:16]} 20. Qxf3 {[%emt 0:00:02]} Qxf3 {[%emt 0:01:08]} 21. Nxf3 {[%emt 0:00:02]} gxf5 {[%emt 0:00:16]} 22. exf5 {[%emt 0:00:01]} e4 {[%emt 0:00:09]} 23. Ng5 {[%emt 0:00:02]} e3 {[%emt 0:00:08]} 24. Nfe4 {[%emt 0:00:11]} Nxe4 {[%emt 0:00:20]} 25. Nxe4 {[%emt 0:00:01]} Rad8 {[%emt 0:00:15]} 26. Ng5 {[%emt 0:01:01]} Ne5 {[%emt 0:01:27]} 27. Ne6 {[%emt 0:00:35]} Nd3 {[%emt 0:00:05]} 28. Nxd8 {[%emt 0:00:49]} Rxd8 {[%emt 0:00:14]} 29. Rab1 {[%emt 0:00:20]} e2 {[%emt 0:00:25]} 30. Rfe1 {[%emt 0:00:09]} Nxb2 {[%emt 0:00:39]} 31. Rxb2 {[%emt 0:00:18]} d3 {[%emt 0:00:01]} 32. Rd2 {[%emt 0:00:04]} Be5 {[%emt 0:00:14]} 33. Rexe2 {[%emt 0:00:32]} Bd4+ {[%emt 0:00:12]} 34. Rf2 {[%emt 0:00:02]} Kf7 {[%emt 0:00:26]} 35. Kg2 {[%emt 0:00:03]} Bxf2 {[%emt 0:00:25]} 36. Kxf2 {[%emt 0:00:02]} Kf6 {[%emt 0:00:16]} 37. g4 {[%emt 0:00:16]} Rd4 {[%emt 0:00:40]} 38. h3 {[%emt 0:00:05]} h5 {[%emt 0:00:06]} 39. gxh5 {[%emt 0:00:07]} Kxf5 {[%emt 0:00:04]} 40. Ke3 {[%emt 0:00:01]} Rh4 {[%emt 0:00:11]} 41. Rxd3 {[%emt 0:00:08]} Rxh3+ {[%emt 0:00:08]} 42. Kd2 {[%emt 0:00:20]} Rh2+ {[%emt 0:00:04]} 43. Kc3 {[%emt 0:00:02]} Ke6 {[%emt 0:00:33]} 44. b4 {[%emt 0:00:27]} cxb4+ {[%emt 0:00:31]} 45. axb4 {[%emt 0:00:06]} Rxh5 {[%emt 0:00:02]} 46. Rg3 {[%emt 0:00:09]} Kd6 {[%emt 0:00:08]} 47. Rg7 {[%emt 0:00:09]} Rh3+ {[%emt 0:00:13]} 48. Kb2 {[%emt 0:00:03]} Kc6 {[%emt 0:00:02]} 49. Rg6+ {[%emt 0:00:14]} Kc7 {[%emt 0:00:04]} 50. Kc2 {[%emt 0:00:03]} a6 {[%emt 0:00:09]} 51. Re6 {[%emt 0:00:07]} Kd7 {[%emt 0:00:05]} 52. Re5 {[%emt 0:00:09]} Kd6 {[%emt 0:00:06]} 53. Rg5 {[%emt 0:00:06]} Kc6 {[%emt 0:00:03]} 54. Rd5 {[%emt 0:00:10]} Kc7 {[%emt 0:00:04]} 55. Rd3 {[%emt 0:00:04]} Rh4 {[%emt 0:00:13]} 56. Kb3 {[%emt 0:00:13]} b6 {[%emt 0:00:03]} 57. Rg3 {[%emt 0:00:05]} Kc6 {[%emt 0:00:10]} 58. Rg6+ {[%emt 0:00:04]} Kb7 {[%emt 0:00:02]} 59. Rg7+ {[%emt 0:00:01]} Kc6 {[%emt 0:00:01]} 60. Ra7 {[%emt 0:00:35]} Rh3+ {[%emt 0:00:01]} 61. Kb2 {[%emt 0:00:01]} Rh4 {[%emt 0:00:02]} 62. Kb3 {[%emt 0:00:08]} Rh3+ {[%emt 0:00:01]} 1/2-1/2

[Event "ESP-ch Rapid 2018"]
[Site "Linares"]
[Date "2018.08.19"]
[Round "8"]
[White "Fernandez Torre, Ivan"]
[Black "Crespo Ruiz, Manuel Maria"]
[Result "1/2-1/2"]
[ECO "D35"]
[WhiteElo "2128"]
[BlackElo "2026"]
[Annotator "NA"]
[PlyCount "76"]
[EventDate "2018.08.19"]
[EventType "team-tourn"]
[EventCountry "ESP"]
[SourceTitle "playchess.com"]
[Source "ChessBase"]
[SourceQuality "1"]
[TimeControl "900+5"]

1. d4 {[%emt 0:00:00]} d5 {[%emt 0:00:01]} 2. c4 {[%emt 0:00:00]} e6 {[%emt 0:00:02]} 3. Nc3 {[%emt 0:00:00]} Nf6 {[%emt 0:00:04]} 4. cxd5 {[%emt 0:00:03]} Nxd5 {[%emt 0:00:04]} 5. e4 {[%emt 0:00:11]} Nxc3 {[%emt 0:00:02]} 6. bxc3 {[%emt 0:00:02]} Be7 {[%emt 0:00:11]} 7. Bb5+ {[%emt 0:00:42]} Nd7 {[%emt 0:00:13]} 8. Nf3 {[%emt 0:00:04]} O-O {[%emt 0:00:03]} 9. O-O {[%emt 0:00:03]} a6 {[%emt 0:01:32]} 10. Bd3 {[%emt 0:00:23]} c5 {[%emt 0:00:26]} 11. Qe2 {[%emt 0:00:32]} Re8 {[%emt 0:00:36]} 12. Rd1 {[%emt 0:00:55]} g6 {[%emt 0:00:29]} 13. Bb2 {[%emt 0:00:30]} Qc7 {[%emt 0:01:10]} 14. h4 {[%emt 0:00:51]} b5 {[%emt 0:00:20]} 15. Ng5 {[%emt 0:00:49]} h6 {[%emt 0:00:58]} 16. Nf3 {[%emt 0:00:31]} Bb7 {[%emt 0:00:39]} 17. h5 {[%emt 0:00:05]} g5 {[%emt 0:00:21]} 18. e5 {[%emt 0:01:35]} Qc6 {[%emt 0:01:18]} 19. Ne1 {[%emt 0:00:53]} Nb6 {[%emt 0:01:10]} 20. f3 {[%emt 0:00:39]} Kg7 {[%emt 0:00:33]} 21. Be4 {[%emt 0:00:48]} Qc7 {[%emt 0:00:05]} 22. Nd3 {[%emt 0:00:20]} cxd4 {[%emt 0:00:55]} 23. cxd4 {[%emt 0:00:02]} Nc4 {[%emt 0:00:19]} 24. Rac1 {[%emt 0:01:08]} Rac8 {[%emt 0:00:31]} 25. Bc3 {[%emt 0:02:31]} Qb6 {[%emt 0:01:01]} 26. Kh1 {[%emt 0:00:27]} Red8 {[%emt 0:00:03]} 27. a4 {[%emt 0:00:41]} Bc6 {[%emt 0:01:02]} 28. a5 {[%emt 0:00:43]} Qb7 {[%emt 0:00:31]} 29. Nb4 {[%emt 0:00:42]} Nxa5 {[%emt 0:00:37]} 30. Bb1 {[%emt 0:00:02]} Nc4 {[%emt 0:00:36]} 31. Qd3 {[%emt 0:00:10]} Rh8 {[%emt 0:00:04]} 32. Qe2 {[%emt 0:00:29]} Rcd8 {[%emt 0:00:34]} 33. Be1 {[%emt 0:00:19]} Rd7 {[%emt 0:00:21]} 34. Bc3 {[%emt 0:00:14]} Rhd8 {[%emt 0:00:23]} 35. Qc2 {[%emt 0:00:09]} Rh8 {[%emt 0:00:04]} 36. Qe2 {[%emt 0:00:01]} Rhd8 {[%emt 0:00:11]} 37. Qc2 {[%emt 0:00:01]} Rh8 {[%emt 0:00:11]} 38. Qe2 {[%emt 0:00:01]} Rhd8 {[%emt 0:00:04]} 1/2-1/2

[Event "ESP-ch Rapid 2018"]
[Site "Linares"]
[Date "2018.08.19"]
[Round "8"]
[White "Cuesta Bustos, Raul"]
[Black "Bento Iglesias, Pablo"]
[Result "0-1"]
[ECO "C00"]
[WhiteElo "2126"]
[BlackElo "2007"]
[Annotator "NA"]
[PlyCount "50"]
[EventDate "2018.08.19"]
[EventType "team-tourn"]
[EventCountry "ESP"]
[SourceTitle "playchess.com"]
[Source "ChessBase"]
[SourceQuality "1"]
[TimeControl "900+5"]

1. e4 {[%emt 0:00:00]} e6 {[%emt 0:00:00]} 2. d4 {[%emt 0:00:00]} b6 {[%emt 0:00:00]} 3. a3 {[%emt 0:00:08]} Bb7 {[%emt 0:00:00]} 4. Nc3 {[%emt 0:00:01]} Nf6 {[%emt 0:00:09]} 5. e5 {[%emt 0:01:07]} Nd5 {[%emt 0:00:28]} 6. Nxd5 {[%emt 0:00:23]} Bxd5 {[%emt 0:00:02]} 7. Nf3 {[%emt 0:00:02]} Be7 {[%emt 0:00:16]} 8. Bd3 {[%emt 0:00:02]} d6 {[%emt 0:00:09]} 9. Qe2 {[%emt 0:00:29]} Nd7 {[%emt 0:00:34]} 10. Bf4 {[%emt 0:00:24]} dxe5 {[%emt 0:00:28]} 11. dxe5 {[%emt 0:00:10]} c5 {[%emt 0:00:13]} 12. Rd1 {[%emt 0:00:47]} Qc7 {[%emt 0:00:12]} 13. c4 {[%emt 0:00:35]} Bc6 {[%emt 0:00:06]} 14. h4 {[%emt 0:01:22]} h6 {[%emt 0:00:18]} 15. Rh3 {[%emt 0:01:28]} O-O-O {[%emt 0:00:45]} 16. Nd2 {[%emt 0:01:07]} g5 {[%emt 0:00:23]} 17. Bh2 {[%emt 0:03:07]} Bxg2 {[%emt 0:00:36]} 18. Re3 {[%emt 0:01:13]} gxh4 {[%emt 0:00:32]} 19. Be4 {[%emt 0:02:21]} Rhg8 {[%emt 0:00:47]} 20. Bf3 {[%emt 0:01:02]} h3 {[%emt 0:01:04]} 21. Ne4 {[%emt 0:00:12]} Nxe5 {[%emt 0:01:27]} 22. Rxd8+ {[%emt 0:00:30]} Rxd8 {[%emt 0:00:27]} 23. Bxe5 {[%emt 0:00:10]} Qxe5 {[%emt 0:00:06]} 24. Nc3 Qh2 {[%emt 0:00:27]} 25. Qc2 {[%emt 0:00:18]} Qg1+ {[%emt 0:00:08]} 0-1

[Event "ESP-ch Rapid 2018"]
[Site "Linares"]
[Date "2018.08.19"]
[Round "8"]
[White "Rodrigo Yanguas, Maria"]
[Black "Garcia Garcia, Adrian Antonio"]
[Result "1-0"]
[ECO "C41"]
[WhiteElo "2062"]
[BlackElo "2179"]
[Annotator "NA"]
[PlyCount "107"]
[EventDate "2018.08.19"]
[EventType "team-tourn"]
[EventCountry "ESP"]
[SourceTitle "playchess.com"]
[Source "ChessBase"]
[SourceQuality "1"]
[TimeControl "900+5"]

1. e4 {[%emt 0:00:00]} e5 {[%emt 0:00:00]} 2. Nf3 {[%emt 0:00:00]} d6 {[%emt 0:00:00]} 3. d4 {[%emt 0:00:00]} exd4 {[%emt 0:00:01]} 4. Nxd4 {[%emt 0:00:00]} Nf6 {[%emt 0:00:02]} 5. Nc3 {[%emt 0:00:00]} a6 {[%emt 0:00:01]} 6. a4 {[%emt 0:00:13]} Be7 {[%emt 0:00:03]} 7. Bc4 {[%emt 0:00:01]} O-O {[%emt 0:00:03]} 8. O-O {[%emt 0:00:08]} Nxe4 {[%emt 0:00:03]} 9. Nxe4 {[%emt 0:00:01]} d5 {[%emt 0:00:01]} 10. Bd3 {[%emt 0:00:15]} dxe4 {[%emt 0:00:03]} 11. Bxe4 {[%emt 0:00:01]} Bf6 {[%emt 0:00:15]} 12. Be3 {[%emt 0:00:22]} Re8 {[%emt 0:00:06]} 13. Bf3 Nd7 {[%emt 0:00:20]} 14. c3 {[%emt 0:00:30]} Ne5 {[%emt 0:00:04]} 15. Be2 {[%emt 0:00:01]} Bd7 {[%emt 0:01:29]} 16. Qb3 {[%emt 0:00:05]} Bc6 {[%emt 0:00:32]} 17. Nxc6 {[%emt 0:00:21]} bxc6 {[%emt 0:00:02]} 18. Rad1 {[%emt 0:00:08]} Qe7 {[%emt 0:00:10]} 19. Rd2 {[%emt 0:00:43]} Reb8 {[%emt 0:00:36]} 20. Qc2 {[%emt 0:00:10]} a5 {[%emt 0:00:41]} 21. Rfd1 {[%emt 0:00:03]} Rd8 {[%emt 0:00:02]} 22. Rxd8+ {[%emt 0:00:39]} Rxd8 {[%emt 0:00:01]} 23. Rxd8+ {[%emt 0:00:01]} Qxd8 {[%emt 0:00:02]} 24. Bd4 {[%emt 0:00:08]} Qd6 {[%emt 0:00:51]} 25. Qf5 {[%emt 0:00:07]} g6 {[%emt 0:00:27]} 26. Qc8+ {[%emt 0:00:35]} Kg7 {[%emt 0:00:02]} 27. Qa6 {[%emt 0:00:10]} Qd5 {[%emt 0:02:07]} 28. h3 {[%emt 0:00:02]} c5 {[%emt 0:00:33]} 29. Be3 {[%emt 0:01:30]} c4 {[%emt 0:01:18]} 30. Qb5 {[%emt 0:00:02]} Qe4 {[%emt 0:00:26]} 31. Qxa5 {[%emt 0:01:33]} Qb1+ {[%emt 0:00:03]} 32. Bf1 {[%emt 0:00:05]} Qxb2 {[%emt 0:00:07]} 33. Bd4 {[%emt 0:00:01]} Nd7 {[%emt 0:01:54]} 34. Qd5 {[%emt 0:00:48]} Bxd4 {[%emt 0:00:25]} 35. Qxd4+ {[%emt 0:00:02]} Nf6 {[%emt 0:00:01]} 36. Qxc4 {[%emt 0:00:33]} Qa1 {[%emt 0:00:19]} 37. Qb4 {[%emt 0:00:11]} c5 {[%emt 0:00:19]} 38. Qc4 {[%emt 0:00:38]} h5 {[%emt 0:00:06]} 39. Qxc5 {[%emt 0:00:47]} Qxa4 {[%emt 0:00:02]} 40. c4 {[%emt 0:00:03]} Qa1 {[%emt 0:00:24]} 41. Qe3 {[%emt 0:00:22]} Qb1 {[%emt 0:00:23]} 42. Qd3 {[%emt 0:00:12]} Qc1 {[%emt 0:00:01]} 43. Qd4 {[%emt 0:00:12]} g5 {[%emt 0:00:12]} 44. c5 {[%emt 0:00:01]} g4 {[%emt 0:00:23]} 45. Qc4 {[%emt 0:00:43]} Qe1 {[%emt 0:01:00]} 46. c6 {[%emt 0:00:34]} g3 {[%emt 0:00:01]} 47. fxg3 {[%emt 0:00:07]} Qe3+ {[%emt 0:00:19]} 48. Kh2 {[%emt 0:00:10]} Ne4 {[%emt 0:00:01]} 49. Qd3 {[%emt 0:00:31]} Qc1 {[%emt 0:02:30]} 50. Qxe4 {[%emt 0:00:08]} Qxf1 {[%emt 0:00:02]} 51. c7 {[%emt 0:00:07]} Qc1 {[%emt 0:00:02]} 52. Qe5+ {[%emt 0:00:08]} f6 {[%emt 0:00:09]} 53. Qe7+ {[%emt 0:00:04]} Kh6 {[%emt 0:00:05]} 54. Qf8+ {[%emt 0:00:02]} 1-0

[Event "ESP-ch Rapid 2018"]
[Site "Linares"]
[Date "2018.08.19"]
[Round "8"]
[White "Redondo Flores, David"]
[Black "Perera Borrego, Maria Adela"]
[Result "0-1"]
[ECO "C41"]
[WhiteElo "1971"]
[BlackElo "2177"]
[Annotator "NA"]
[PlyCount "82"]
[EventDate "2018.08.19"]
[EventType "team-tourn"]
[EventCountry "ESP"]
[SourceTitle "playchess.com"]
[Source "ChessBase"]
[SourceQuality "1"]
[TimeControl "900+5"]

1. e4 {[%emt 0:00:00]} d6 {[%emt 0:00:01]} 2. d4 {[%emt 0:00:00]} Nf6 {[%emt 0:00:04]} 3. Nc3 {[%emt 0:00:02]} e5 {[%emt 0:00:02]} 4. Nf3 {[%emt 0:00:12]} Nbd7 {[%emt 0:00:02]} 5. Bc4 {[%emt 0:00:02]} Be7 {[%emt 0:00:02]} 6. O-O {[%emt 0:00:04]} O-O {[%emt 0:00:02]} 7. Re1 {[%emt 0:00:02]} c6 {[%emt 0:00:02]} 8. a4 {[%emt 0:00:02]} a5 {[%emt 0:00:04]} 9. h3 {[%emt 0:00:21]} Nb6 {[%emt 0:00:03]} 10. Ba2 {[%emt 0:00:18]} Nfd7 {[%emt 0:00:02]} 11. Be3 {[%emt 0:00:31]} Bf6 {[%emt 0:00:03]} 12. d5 {[%emt 0:00:25]} c5 {[%emt 0:00:08]} 13. Qe2 {[%emt 0:00:49]} Nb8 {[%emt 0:00:10]} 14. Bc4 {[%emt 0:00:34]} Na6 {[%emt 0:00:55]} 15. Bxa6 {[%emt 0:00:13]} Rxa6 {[%emt 0:00:07]} 16. Nb5 {[%emt 0:00:09]} Qd7 {[%emt 0:01:05]} 17. Nd2 {[%emt 0:00:30]} g6 {[%emt 0:00:10]} 18. Bh6 {[%emt 0:01:26]} Bg7 {[%emt 0:00:11]} 19. Qe3 {[%emt 0:01:59]} Nxa4 20. Bxg7 {[%emt 0:00:48]} Kxg7 {[%emt 0:00:29]} 21. c4 {[%emt 0:00:44]} Nb6 {[%emt 0:00:29]} 22. Qc3 {[%emt 0:00:16]} a4 {[%emt 0:00:44]} 23. Ra3 {[%emt 0:00:18]} f5 {[%emt 0:00:32]} 24. Rea1 {[%emt 0:00:08]} fxe4 {[%emt 0:00:16]} 25. Nxe4 {[%emt 0:00:03]} Nxd5 {[%emt 0:00:40]} 26. Qd2 {[%emt 0:00:39]} Nf4 {[%emt 0:03:29]} 27. Nbxd6 {[%emt 0:01:14]} Qe7 {[%emt 0:01:09]} 28. Rd1 {[%emt 0:00:14]} Rd8 {[%emt 0:01:42]} 29. Re3 {[%emt 0:02:01]} Be6 {[%emt 0:01:55]} 30. Qc3 {[%emt 0:01:41]} Bf7 {[%emt 0:01:24]} 31. Nf5+ {[%emt 0:01:07]} gxf5 {[%emt 0:00:03]} 32. Rxd8 {[%emt 0:00:03]} fxe4 {[%emt 0:00:17]} 33. Rg3+ {[%emt 0:00:28]} Rg6 {[%emt 0:00:18]} 34. Rxg6+ {[%emt 0:00:05]} hxg6 {[%emt 0:00:05]} 35. Qd2 {[%emt 0:00:04]} Qg5 {[%emt 0:00:11]} 36. g3 {[%emt 0:00:12]} e3 {[%emt 0:00:21]} 37. Qxe3 {[%emt 0:00:07]} Nxh3+ {[%emt 0:00:07]} 38. Kh2 {[%emt 0:00:02]} Qxd8 {[%emt 0:00:03]} 39. Qxe5+ {[%emt 0:00:01]} Qf6 {[%emt 0:00:00]} 40. Qxf6+ {[%emt 0:00:16]} Kxf6 {[%emt 0:00:02]} 41. Kxh3 {[%emt 0:00:02]} Bxc4 {[%emt 0:00:01]} 0-1

[Event "ESP-ch Rapid 2018"]
[Site "Linares"]
[Date "2018.08.19"]
[Round "8"]
[White "Alonso, Jose Antonio"]
[Black "Galvez Extremera, Francisco"]
[Result "0-1"]
[ECO "B13"]
[WhiteElo "1920"]
[BlackElo "2142"]
[Annotator "NA"]
[PlyCount "92"]
[EventDate "2018.08.19"]
[EventType "team-tourn"]
[EventCountry "ESP"]
[SourceTitle "playchess.com"]
[Source "ChessBase"]
[SourceQuality "1"]
[TimeControl "900+5"]

1. e4 {[%emt 0:00:00]} c6 {[%emt 0:00:00]} 2. d4 {[%emt 0:00:00]} d5 {[%emt 0:00:00]} 3. exd5 {[%emt 0:00:00]} cxd5 {[%emt 0:00:00]} 4. Nc3 {[%emt 0:00:03]} Nf6 {[%emt 0:00:08]} 5. Bf4 {[%emt 0:00:06]} Bg4 {[%emt 0:01:18]} 6. Be2 {[%emt 0:00:07]} Bxe2 {[%emt 0:00:13]} 7. Ngxe2 {[%emt 0:00:02]} e6 {[%emt 0:00:03]} 8. O-O {[%emt 0:01:35]} Nc6 {[%emt 0:00:04]} 9. Re1 {[%emt 0:00:29]} Be7 {[%emt 0:00:19]} 10. a3 {[%emt 0:00:28]} O-O {[%emt 0:00:07]} 11. Ng3 {[%emt 0:00:04]} Qb6 {[%emt 0:00:46]} 12. Be5 {[%emt 0:02:34]} Qxb2 {[%emt 0:00:19]} 13. Re3 {[%emt 0:01:53]} Rfc8 {[%emt 0:00:23]} 14. Rb1 {[%emt 0:00:29]} Qxa3 {[%emt 0:00:41]} 15. Nxd5 {[%emt 0:00:38]} Qa5 {[%emt 0:02:25]} 16. Nxe7+ {[%emt 0:02:08]} Nxe7 {[%emt 0:00:03]} 17. Bxf6 {[%emt 0:00:16]} gxf6 {[%emt 0:00:03]} 18. Rxb7 {[%emt 0:00:04]} Ng6 {[%emt 0:01:30]} 19. Reb3 {[%emt 0:00:55]} f5 {[%emt 0:01:37]} 20. Nh5 {[%emt 0:01:28]} Rxc2 {[%emt 0:01:33]} 21. h3 {[%emt 0:01:42]} Rc7 {[%emt 0:00:23]} 22. Qb1 {[%emt 0:00:27]} Rxb7 {[%emt 0:00:13]} 23. Rxb7 {[%emt 0:00:04]} Qd8 {[%emt 0:00:05]} 24. Qb2 {[%emt 0:00:24]} a5 {[%emt 0:02:25]} 25. d5 {[%emt 0:00:33]} e5 {[%emt 0:00:02]} 26. Qa2 {[%emt 0:00:16]} Qg5 {[%emt 0:01:55]} 27. d6 {[%emt 0:00:13]} Rf8 {[%emt 0:00:02]} 28. Ng3 {[%emt 0:00:04]} Qc1+ {[%emt 0:00:14]} 29. Nf1 {[%emt 0:00:02]} Qc6 {[%emt 0:00:04]} 30. Rc7 {[%emt 0:00:18]} Qxd6 {[%emt 0:00:02]} 31. Qxa5 {[%emt 0:00:00]} Nf4 {[%emt 0:00:11]} 32. Qc5 {[%emt 0:00:06]} Qd1 {[%emt 0:00:07]} 33. Qe3 {[%emt 0:00:11]} Ne2+ {[%emt 0:00:02]} 34. Kh2 {[%emt 0:00:03]} Qd6 {[%emt 0:00:22]} 35. Rc5 {[%emt 0:00:06]} Nf4 {[%emt 0:00:05]} 36. Qg3+ {[%emt 0:00:01]} Ng6 {[%emt 0:00:01]} 37. Rc3 {[%emt 0:00:03]} f4 {[%emt 0:00:01]} 38. Qg4 {[%emt 0:00:04]} e4 {[%emt 0:00:02]} 39. g3 {[%emt 0:00:03]} Qd4 {[%emt 0:00:08]} 40. Rc1 {[%emt 0:00:04]} Qxf2+ {[%emt 0:00:02]} 41. Kh1 {[%emt 0:00:03]} f3 {[%emt 0:00:02]} 42. Ne3 {[%emt 0:00:04]} Qxe3 {[%emt 0:00:03]} 43. Rg1 {[%emt 0:00:03]} f2 {[%emt 0:00:03]} 44. Rf1 {[%emt 0:00:01]} f5 {[%emt 0:00:06]} 45. Qh5 {[%emt 0:00:05]} Qe1 {[%emt 0:00:12]} 46. Qe2 {[%emt 0:00:06]} Qxe2 {[%emt 0:00:02]} 0-1

[Event "ESP-ch Rapid 2018"]
[Site "Linares"]
[Date "2018.08.19"]
[Round "8"]
[White "Vazquez Pino, Miguel A"]
[Black "Ruiz Casado, Francisco Javier"]
[Result "1-0"]
[ECO "B06"]
[WhiteElo "1909"]
[BlackElo "1975"]
[Annotator "NA"]
[PlyCount "45"]
[EventDate "2018.08.19"]
[EventType "team-tourn"]
[EventCountry "ESP"]
[SourceTitle "playchess.com"]
[Source "ChessBase"]
[SourceQuality "1"]
[TimeControl "900+5"]

1. e4 {[%emt 0:00:00]} g6 {[%emt 0:00:00]} 2. d4 {[%emt 0:00:00]} Bg7 {[%emt 0:00:00]} 3. Nf3 {[%emt 0:00:04]} c6 {[%emt 0:00:06]} 4. Be3 {[%emt 0:00:06]} d5 {[%emt 0:00:02]} 5. exd5 {[%emt 0:00:10]} cxd5 {[%emt 0:00:01]} 6. c4 {[%emt 0:00:07]} Nf6 {[%emt 0:00:06]} 7. Nc3 {[%emt 0:00:03]} O-O {[%emt 0:00:04]} 8. Qb3 {[%emt 0:00:10]} dxc4 {[%emt 0:01:25]} 9. Bxc4 {[%emt 0:00:02]} Nc6 {[%emt 0:00:18]} 10. Be2 {[%emt 0:00:42]} b6 {[%emt 0:01:05]} 11. O-O {[%emt 0:00:15]} Bb7 {[%emt 0:00:59]} 12. Rfd1 {[%emt 0:00:53]} Na5 {[%emt 0:00:28]} 13. Qb4 {[%emt 0:00:43]} Rc8 {[%emt 0:00:21]} 14. Rac1 {[%emt 0:00:24]} Nd5 {[%emt 0:00:08]} 15. Nxd5 {[%emt 0:00:15]} Qxd5 {[%emt 0:00:53]} 16. Qxe7 {[%emt 0:00:10]} Qxa2 {[%emt 0:02:14]} 17. Rxc8 {[%emt 0:00:45]} Rxc8 {[%emt 0:00:14]} 18. d5 {[%emt 0:00:47]} Qxb2 {[%emt 0:00:18]} 19. d6 {[%emt 0:01:10]} Bf6 {[%emt 0:01:16]} 20. Bd4 {[%emt 0:00:44]} Bxd4 {[%emt 0:04:58]} 21. d7 {[%emt 0:00:06]} Bf6 {[%emt 0:00:44]} 22. d8=Q+ {[%emt 0:00:06]} Rxd8 {[%emt 0:00:03]} 23. Rxd8+ {[%emt 0:00:02]} 1-0

[Event "ESP-ch Rapid 2018"]
[Site "Linares"]
[Date "2018.08.19"]
[Round "8"]
[White "Guerrero Romero, Antonio"]
[Black "Lopez Gonzalez, Alfonso"]
[Result "0-1"]
[ECO "D37"]
[WhiteElo "1895"]
[BlackElo "2063"]
[Annotator "NA"]
[PlyCount "100"]
[EventDate "2018.08.19"]
[EventType "team-tourn"]
[EventCountry "ESP"]
[SourceTitle "playchess.com"]
[Source "ChessBase"]
[SourceQuality "1"]
[TimeControl "900+5"]

1. d4 {[%emt 0:00:00]} d5 {[%emt 0:00:00]} 2. Nf3 {[%emt 0:00:00]} Nf6 {[%emt 0:00:00]} 3. c4 {[%emt 0:00:05]} e6 {[%emt 0:00:00]} 4. Nc3 {[%emt 0:00:01]} Nbd7 {[%emt 0:00:00]} 5. g3 {[%emt 0:00:10]} Be7 {[%emt 0:00:02]} 6. Bg2 {[%emt 0:00:01]} O-O {[%emt 0:00:03]} 7. O-O {[%emt 0:00:07]} dxc4 {[%emt 0:00:01]} 8. a4 {[%emt 0:00:11]} a6 {[%emt 0:00:24]} 9. Qc2 {[%emt 0:00:08]} Rb8 {[%emt 0:00:06]} 10. a5 {[%emt 0:00:54]} Nd5 {[%emt 0:00:26]} 11. Na4 {[%emt 0:01:05]} b5 {[%emt 0:00:25]} 12. axb6 {[%emt 0:00:04]} cxb6 {[%emt 0:00:34]} 13. e4 {[%emt 0:00:21]} Nb4 {[%emt 0:00:02]} 14. Qd2 {[%emt 0:00:18]} b5 {[%emt 0:00:15]} 15. Nc3 {[%emt 0:00:02]} Nd3 {[%emt 0:00:06]} 16. Rd1 {[%emt 0:00:45]} Nb6 {[%emt 0:00:24]} 17. Qe2 {[%emt 0:00:37]} Nxc1 {[%emt 0:00:11]} 18. Raxc1 {[%emt 0:00:03]} Bb7 {[%emt 0:00:11]} 19. h4 {[%emt 0:01:02]} Rc8 {[%emt 0:00:47]} 20. Ne5 {[%emt 0:00:51]} Bf6 {[%emt 0:02:30]} 21. f4 {[%emt 0:00:02]} Bxe5 {[%emt 0:00:16]} 22. fxe5 {[%emt 0:00:06]} b4 {[%emt 0:00:12]} 23. Nb1 {[%emt 0:00:07]} a5 {[%emt 0:00:18]} 24. Kh2 {[%emt 0:00:04]} Qc7 {[%emt 0:00:27]} 25. h5 {[%emt 0:00:17]} h6 {[%emt 0:00:05]} 26. Nd2 {[%emt 0:00:29]} Ba6 {[%emt 0:00:44]} 27. Qg4 {[%emt 0:00:02]} Qe7 {[%emt 0:00:21]} 28. Nf3 {[%emt 0:00:06]} a4 {[%emt 0:00:24]} 29. d5 {[%emt 0:00:06]} c3 {[%emt 0:00:39]} 30. bxc3 {[%emt 0:00:10]} b3 {[%emt 0:00:01]} 31. d6 {[%emt 0:00:08]} Qd7 {[%emt 0:00:01]} 32. Nd2 {[%emt 0:00:52]} b2 {[%emt 0:00:06]} 33. Rc2 {[%emt 0:00:06]} a3 {[%emt 0:00:08]} 34. Bf1 {[%emt 0:00:04]} Qa4 {[%emt 0:01:40]} 35. Bxa6 {[%emt 0:00:14]} Qxc2 {[%emt 0:00:02]} 36. Bxc8 {[%emt 0:00:12]} a2 {[%emt 0:00:01]} 37. Bxe6 {[%emt 0:00:08]} a1=Q {[%emt 0:01:07]} 38. Bb3 {[%emt 0:00:46]} Qxd2+ {[%emt 0:02:03]} 39. Rxd2 {[%emt 0:00:37]} b1=Q {[%emt 0:00:05]} 40. Bd1 {[%emt 0:00:39]} Qxc3 {[%emt 0:00:07]} 41. Qe2 {[%emt 0:00:15]} Qxe5 {[%emt 0:00:19]} 42. d7 {[%emt 0:00:32]} Nxd7 {[%emt 0:00:02]} 43. Rxd7 {[%emt 0:00:05]} Qbxe4 {[%emt 0:00:01]} 44. Qf2 {[%emt 0:00:26]} Qe1 {[%emt 0:00:16]} 45. Rd2 {[%emt 0:00:24]} Qxf2+ {[%emt 0:00:03]} 46. Rxf2 {[%emt 0:00:02]} Rd8 {[%emt 0:00:01]} 47. Bb3 {[%emt 0:00:08]} Qxh5+ {[%emt 0:00:01]} 48. Kg2 {[%emt 0:00:02]} Rd3 {[%emt 0:00:05]} 49. Bc2 {[%emt 0:00:21]} Qd5+ {[%emt 0:00:06]} 50. Kh2 {[%emt 0:00:04]} Rd2 0-1